bitfinex/quotes_ETHUSD_20220227
["timestamp","ask_amount","ask_price","bid_price","bid_amount"]
[1645975988534,2.89929239,2809.6,2808.0,11.02]
[1645975988735,3.89929239,2809.6,2807.9,0.1423]
[1645975988936,3.89929239,2809.6,2809.0,0.01005115]
[1645975988937,0.25,2809.2,2809.0,0.01005115]
[1645975989354,1.14075,2809.2,2809.0,5.115e-05]
[1645975989543,8.0,2809.0,2808.7,1.301e-05]
[1645975989742,0.431,2808.9,2808.7,1.301e-05]
[1645975990340,0.431,2808.9,2807.9,0.1423]
[1645975990541,0.25,2808.5,2807.9,0.1423]
[1645975990743,0.25,2808.5,2807.1,0.00096]
[1645975990744,0.431,2808.4,2807.1,0.00096]
[1645975990941,0.431,2808.4,2806.9,0.00096]
[1645975991141,0.25,2808.0,2806.7,1.50723749]
[1645975991342,0.25,2808.0,2806.8,0.00096]
[1645975991588,1.21459152,2807.4,2806.8,0.00096]
[1645975991785,0.25,2808.0,2807.8,0.39217739]
[1645975992786,1.21226018,2807.9,2807.8,0.39217739]
[1645975993893,0.25,2808.0,2807.8,0.39217739]
[1645975996330,0.25,2808.0,2807.9,14.52]
[1645975996531,0.25,2808.0,2807.9,8.02]
[1645975996729,0.25,2808.0,2807.9,8.3829]
[1645975997731,0.25,2808.0,2807.9,9.88879386]
[1645975998329,0.25,2808.0,2807.9,14.38879386]
[1645975998533,0.0001,2808.0,2807.9,14.38879386]
[1645975999483,0.0001,2808.0,2807.9,10.88879386]
[1645975999687,0.0001,2808.0,2807.9,9.88879386]
[1645975999885,0.0001,2808.0,2807.9,12.52589386]
[1645976000288,0.0001,2808.0,2807.8,0.93169275]
[1645976000490,0.0001,2808.0,2807.8,0.39760205]
[1645976000690,0.0001,2808.0,2807.8,0.39217739]
[1645976000890,0.0001,2808.0,2807.8,11.41217739]
[1645976001088,0.0001,2808.0,2807.8,11.41760205]
[1645976001303,0.0001,2808.0,2807.8,11.78050205]
[1645976001490,0.0001,2808.0,2807.8,11.41760205]
[1645976001691,0.0001,2808.0,2807.8,0.39760205]
[1645976001889,0.0001,2808.0,2807.8,0.39217739]
[1645976002297,0.0001,2808.0,2807.8,0.3976021]
[1645976002927,0.0001,2808.0,2807.9,11.02]
[1645976003129,0.0001,2808.0,2807.8,0.3976021]
[1645976003328,0.0001,2808.0,2807.8,0.76040467]
[1645976003530,0.0001,2808.0,2807.8,0.39750467]
[1645976004334,0.0001,2808.0,2807.8,11.41217739]
[1645976004534,0.0001,2808.0,2807.8,0.39750467]
[1645976005536,0.0001,2808.0,2807.8,0.39217739]
[1645976005537,1.13964833,2807.9,2807.8,0.39217739]
[1645976005734,1.13964833,2807.9,2807.8,0.39750467]
[1645976006884,4.0,2807.8,2807.7,0.00509784]
[1645976007681,4.0,2807.8,2807.7,9.784e-05]
[1645976007881,4.61108108,2807.8,2807.7,9.784e-05]
[1645976008081,4.91108108,2807.8,2806.7,0.00096]
[1645976008280,0.25,2807.4,2806.7,0.00096]
[1645976008882,0.1424,2807.3,2806.6,0.39692228]
[1645976009784,0.3924,2807.4,2806.6,0.39692228]
[1645976009988,1.06027661,2806.8,2806.6,0.39692228]
[1645976010447,1.06027661,2806.8,2806.4,0.01116206]
[1645976010448,7.0,2806.7,2806.4,0.01116206]
[1645976010843,7.25,2806.7,2806.4,0.01116206]
[1645976011045,0.1424,2806.6,2806.4,0.01116206]
[1645976011446,9.60663,2806.7,2806.4,6.206e-05]
[1645976011846,9.60663,2806.7,2806.4,0.00542961]
[1645976011847,8.71495,2806.7,2806.4,0.00542961]
[1645976012045,8.57255,2806.7,2806.4,0.00542961]
[1645976012245,8.57255,2806.7,2806.4,2.961e-05]
[1645976012444,8.57255,2806.7,2805.0,3.5]
[1645976012445,1.43660242,2805.5,2805.0,3.5]
[1645976012650,0.1424,2806.6,2805.8,0.17107569]
[1645976012651,0.89171,2806.3,2805.8,0.17107569]
[1645976012845,0.25,2806.1,2805.8,0.17107569]
[1645976013647,1.14075135,2805.9,2805.8,0.17107569]
[1645976014587,1.14075135,2805.9,2805.8,0.00107569]
[1645976015193,2.03255135,2805.9,2804.5,3.5]
[1645976015389,2.03255135,2805.9,2805.7,0.00277509]
[1645976015791,2.03255135,2805.9,2805.8,7.1281]
[1645976016194,0.25,2806.0,2805.8,7.1281]
[1645976016790,0.25542799,2806.0,2805.8,7.1281]
[1645976017196,1.04173451,2805.9,2805.8,7.1281]
[1645976017834,1.04173451,2805.9,2805.8,7.13352859]
[1645976018630,1.04173451,2805.9,2805.8,7.1281]
[1645976019038,0.25,2806.0,2805.8,7.1281]
[1645976019039,0.25266952,2806.0,2805.8,7.1281]
[1645976019238,0.25266952,2806.0,2805.8,7.0931]
[1645976019444,0.25266952,2806.0,2805.8,18.476]
[1645976019640,0.25266952,2806.0,2805.9,3.5]
[1645976019839,0.25,2806.0,2805.9,3.5]
[1645976020042,0.25,2806.0,2805.9,11.02]
[1645976020242,0.25,2806.0,2805.9,3.8629]
[1645976020447,0.25490875,2806.0,2805.9,7.5257]
[1645976020639,0.25490875,2806.0,2805.9,7.6681]
[1645976020839,0.25490875,2806.0,2805.9,7.3052]
[1645976021242,0.25490875,2806.0,2805.9,7.6681]
[1645976021489,0.25,2806.0,2805.9,7.6681]
[1645976021889,0.25,2806.0,2805.9,18.6881]
[1645976022291,0.25,2806.0,2805.9,7.6681]
[1645976022491,0.25,2806.0,2805.9,7.1628]
[1645976023593,1.47852576,2806.0,2805.9,7.1628]
[1645976027931,1.62092576,2806.0,2805.9,7.1628]
[1645976028139,6.4021,2805.9,2805.8,2.175e-05]
[1645976028338,6.5445,2805.9,2804.5,0.00096]
[1645976028536,0.25,2805.5,2804.3,1.87127914]
[1645976028733,0.25,2805.5,2805.1,0.02049213]
[1645976029604,0.25,2805.5,2805.2,7.1294]
[1645976029805,1.31211513,2805.4,2805.2,7.1294]
[1645976030812,2.20409513,2805.4,2805.2,7.1294]
[1645976031005,2.20409513,2805.4,2805.2,7.13450934]
[1645976032107,2.20409513,2805.4,2805.2,7.1294]
[1645976032308,2.20409513,2805.4,2805.2,7.13450934]
[1645976032743,18.1545,2805.2,2804.7,4.042e-05]
[1645976032943,13.37796,2805.1,2804.7,4.042e-05]
[1645976033353,14.37796,2805.1,2804.7,4.042e-05]
[1645976033542,14.37796,2805.1,2803.6,0.00096]
[1645976033543,0.18008108,2805.0,2803.6,0.00096]
[1645976033741,1.14236,2804.6,2803.6,0.00096]
[1645976033944,0.1426,2804.5,2803.6,0.00096]
[1645976034146,13.37843,2804.5,2803.4,1.50902924]
[1645976034347,14.37843,2804.5,2803.4,1.50902924]
[1645976034548,0.25,2803.8,2803.4,1.50902924]
[1645976034745,0.89252,2803.7,2803.4,1.50806924]
[1645976035047,1.92764,2804.3,2804.1,0.46620514]
[1645976035249,2.65864,2804.3,2804.1,0.46620514]
[1645976035446,0.8736,2804.3,2804.1,0.46620514]
[1645976035852,1.09199193,2804.2,2804.1,1.631e-05]
[1645976036048,3.75052193,2804.2,2804.1,1.631e-05]
[1645976036251,4.75052193,2804.2,2803.6,0.02044776]
[1645976036487,1.03519,2804.1,2803.6,0.02044776]
[1645976036788,0.25,2803.9,2803.4,0.00096]
[1645976036989,0.1426,2803.8,2803.3,3.61240761]
[1645976037591,1.34493936,2803.5,2803.3,3.61240761]
[1645976037989,1.03515,2803.8,2803.3,3.61240761]
[1645976038189,0.89255,2803.8,2803.3,3.61240761]
[1645976038591,13.1052,2803.8,2803.3,3.61240761]
[1645976038790,1.78541,2803.7,2803.3,3.61240761]
[1645976039194,1.36954457,2803.6,2803.3,3.61240761]
[1645976039395,2.08541,2803.7,2803.3,3.61240761]
[1645976039594,0.89255,2803.8,2803.3,3.61240761]
[1645976040434,0.1426,2803.7,2803.3,3.61240761]
[1645976040635,0.1426,2803.7,2803.4,0.00534689]
[1645976041537,1.32355,2803.8,2803.3,3.61240761]
[1645976041743,0.25,2803.9,2803.3,3.97530761]
[1645976041937,0.25,2803.9,2803.4,0.36834186]
[1645976042136,0.25,2803.9,2803.4,3.86834186]
[1645976042336,0.25,2803.9,2803.4,14.88834186]
[1645976042538,0.25,2803.9,2803.4,4.16834186]
[1645976042740,0.25,2805.1,2803.4,4.16834186]
[1645976042741,0.25,2805.1,2803.6,0.3629]
[1645976042939,1.78395,2805.8,2803.9,0.01287337]
[1645976043138,0.00543945,2804.7,2804.0,0.3629]
[1645976043338,0.00543945,2804.7,2804.2,0.3629]
[1645976043540,0.25,2804.6,2804.2,0.3629]
[1645976043742,0.25,2804.6,2804.4,0.3629]
[1645976044011,1.0962631,2806.3,2804.4,0.3629]
[1645976044012,0.25,2805.5,2804.6,6.26571806]
[1645976044212,0.25,2805.2,2804.7,0.98844077]
[1645976044413,0.25,2805.1,2804.8,11.58364602]
[1645976044613,3.68008108,2806.9,2804.8,11.88364602]
[1645976044614,0.25,2806.1,2804.8,11.88364602]
[1645976044813,0.25,2806.1,2805.0,11.59000373]
[1645976045018,0.25,2806.1,2805.0,11.89000373]
[1645976045217,0.25,2806.1,2805.1,0.24609829]
[1645976045413,0.25,2806.1,2805.1,0.2067437]
[1645976045614,0.00237878,2805.6,2805.4,11.3829]
[1645976045815,0.00237878,2805.6,2805.5,0.25048981]
[1645976046018,0.00237878,2805.6,2805.5,14.8829]
[1645976046222,0.00237878,2805.6,2805.5,16.06890032]
[1645976046223,7.878e-05,2805.6,2805.5,16.06890032]
[1645976046415,0.25,2806.1,2805.5,16.06890032]
[1645976046617,0.25,2806.1,2805.5,1.0]
[1645976046820,0.00237878,2805.7,2805.1,0.3629]
[1645976047016,0.00237878,2805.7,2805.2,0.3629]
[1645976047219,0.25,2805.6,2805.2,0.3629]
[1645976047417,0.25,2805.6,2804.7,0.07106554]
[1645976047615,0.25,2805.6,2804.7,3.57010554]
[1645976047845,0.25,2805.6,2804.8,0.3629]
[1645976048040,0.2,2805.6,2804.9,0.3629]
[1645976048240,0.2,2805.6,2804.7,0.07010554]
[1645976048438,0.15,2805.6,2804.7,0.07010554]
[1645976048642,3.66744616,2806.0,2804.7,0.07010554]
[1645976049142,0.00522367,2805.7,2804.7,0.07010554]
[1645976049343,0.1424,2805.6,2804.7,0.07010554]
[1645976049744,1.30390336,2805.1,2804.7,0.07010554]
[1645976049945,0.1424,2805.6,2804.7,0.07010554]
[1645976050650,0.1424,2805.6,2804.3,0.33919149]
[1645976051048,1.05203331,2805.1,2804.3,0.33919149]
[1645976051250,1.05203331,2805.1,2804.4,7.1309]
[1645976051984,0.89195,2805.6,2804.4,7.1309]
[1645976052385,0.731,2805.6,2804.4,7.1309]
[1645976052787,0.00245777,2805.1,2804.4,7.1309]
[1645976053591,1.05474495,2805.4,2804.4,7.1309]
[1645976053995,0.00518537,2804.9,2804.4,7.13608643]
[1645976054393,1.36166374,2804.9,2804.4,7.13608643]
[1645976054793,0.00518537,2804.9,2804.4,7.13608643]
[1645976054991,0.27484194,2805.6,2804.9,0.01037073]
[1645976055234,0.02484194,2805.6,2805.0,7.1301]
[1645976055634,0.02484194,2805.6,2805.0,7.493]
[1645976055834,0.02484194,2805.6,2805.0,18.513]
[1645976056235,0.02484194,2805.6,2805.0,7.493]
[1645976056837,0.02484194,2805.6,2805.0,18.513]
[1645976057243,0.02484194,2805.6,2805.1,12.89042322]
[1645976057438,0.02484194,2805.6,2805.3,0.3629]
[1645976057642,0.02484194,2805.6,2805.4,7.492]
[1645976058037,0.02484194,2805.6,2805.4,7.1291]
[1645976058237,0.25,2806.3,2805.4,7.492]
[1645976058638,0.25,2806.3,2805.5,0.22931123]
[1645976058838,0.25,2806.3,2805.6,7.1286]
[1645976059089,0.02530153,2806.4,2805.6,7.1286]
[1645976059891,0.00519838,2806.1,2805.6,7.1286]
[1645976060792,0.1424,2806.3,2805.6,7.1286]
[1645976060793,0.04759838,2806.3,2805.6,7.1286]
[1645976060991,0.1425,2806.3,2805.6,7.1286]
[1645976061193,0.00519851,2806.0,2805.6,7.1286]
[1645976061796,0.00519851,2806.0,2804.9,0.01037073]
[1645976061998,1.03427,2805.9,2804.9,0.01037073]
[1645976062193,0.431,2805.8,2804.9,0.01037073]
[1645976062393,0.1424,2805.7,2804.9,0.01037073]
[1645976062592,0.431,2805.6,2804.9,0.01037073]
[1645976062830,1.34945657,2805.0,2804.9,0.01037073]
[1645976063030,0.431,2805.4,2804.9,0.01037073]
[1645976063431,0.1424,2805.3,2804.9,0.01037073]
[1645976063634,0.431,2805.2,2804.9,0.01037073]
[1645976063832,0.1424,2805.1,2804.9,0.01037073]
[1645976064035,0.5734,2805.1,2804.9,0.01037073]
[1645976064235,1.08177387,2805.0,2804.9,0.01037073]
[1645976064441,4.58177387,2805.0,2804.9,0.01037073]
[1645976064638,9.3736,2805.0,2804.9,7.073e-05]
[1645976064838,10.55368108,2805.0,2804.9,7.13021451]
[1645976065036,0.75368108,2805.0,2804.4,0.02177837]
[1645976065237,0.3,2805.0,2804.4,0.02177837]
[1645976065635,1.43517264,2804.9,2804.4,0.02177837]
[1645976066038,0.1426,2804.8,2803.4,0.00096]
[1645976066235,0.1426,2804.8,2803.4,1.50930815]
[1645976066883,1.11297198,2804.1,2803.4,1.50930815]
[1645976067283,0.3,2804.2,2803.4,0.00096]
[1645976067482,0.3,2804.2,2803.4,1.50935613]
[1645976067684,0.4426,2804.5,2803.4,1.50935613]
[1645976067883,0.3,2804.5,2803.5,0.3629]
[1645976068082,0.3,2804.7,2803.6,0.00096]
[1645976068383,1.23799618,2804.4,2803.6,0.00096]
[1645976068582,1.23799618,2804.4,2803.6,1.50830086]
[1645976068782,1.23799618,2804.4,2803.7,1.50830086]
[1645976068982,1.23799618,2804.4,2803.4,0.36386]
[1645976069185,1.23799618,2804.4,2803.5,1.50832253]
[1645976069387,1.33481,2804.8,2803.5,1.50832253]
[1645976069388,0.25,2804.1,2803.5,1.50832253]
[1645976069590,0.25,2804.1,2803.9,0.0054447]
[1645976070349,0.25,2804.1,2804.0,1.50812898]
[1645976070649,0.25,2804.1,2804.0,12.89102898]
[1645976071048,0.25,2804.1,2804.0,1.50812898]
[1645976071250,0.25,2804.1,2804.0,0.1426]
[1645976071451,0.25,2804.1,2803.9,0.00544475]
[1645976072050,0.25,2804.1,2803.9,0.0054447]
[1645976072853,0.25,2804.1,2803.6,0.00096]
[1645976073053,0.25,2804.1,2803.4,0.00096]
[1645976073253,0.27485385,2804.1,2803.9,0.00544475]
[1645976073656,1.28579162,2804.0,2803.9,0.00544475]
[1645976074099,1.58579162,2804.0,2803.4,0.02274227]
[1645976074301,1.58579162,2804.0,2803.4,0.02178227]
[1645976074499,1.58579162,2804.0,2803.8,0.00517724]
[1645976075100,0.3,2804.0,2803.3,1.63925693]
[1645976075299,0.57485385,2804.1,2803.3,1.63925693]
[1645976075500,0.87485385,2804.1,2803.8,0.00517729]
[1645976076301,1.43559519,2804.0,2803.8,0.00517729]
[1645976076500,1.43559519,2804.0,2803.3,1.6599692]
[1645976076704,0.87485385,2804.1,2803.3,1.63925693]
[1645976076705,0.27485385,2804.1,2803.3,1.63925693]
[1645976076902,0.27485385,2804.1,2803.4,1.50839681]
[1645976077112,0.27485385,2804.1,2803.4,1.87129681]
[1645976077300,0.27485385,2804.1,2803.5,1.50839681]
[1645976077505,0.27485385,2804.1,2803.3,1.63925693]
[1645976077744,0.27485385,2804.1,2803.4,1.87128119]
[1645976077944,0.27485385,2804.1,2803.5,1.50838119]
[1645976078143,0.00544094,2803.9,2803.5,1.50838119]
[1645976078943,0.27485385,2804.1,2803.9,0.01088188]
[1645976080856,0.25,2804.7,2803.9,11.6519192]
[1645976081052,0.21069443,2805.1,2803.9,11.6519192]
[1645976081053,0.25,2804.2,2804.1,11.3829]
[1645976081250,5.7155,2805.9,2804.1,16.39103052]
[1645976081515,11.5475,2806.1,2804.1,16.39103052]
[1645976081516,0.25,2805.4,2804.1,12.89711802]
[1645976082492,0.25,2805.4,2804.4,0.3629]
[1645976082696,0.00544355,2804.9,2804.4,0.3629]
[1645976082896,0.00544355,2804.9,2804.4,11.3829]
[1645976082897,0.25,2804.8,2804.4,11.3829]
[1645976083097,0.25,2804.8,2804.6,11.3829]
[1645976083293,0.25,2804.8,2804.7,18.5138]
[1645976083495,0.285447,2806.2,2804.7,18.5138]
[1645976083496,0.1426,2806.1,2804.9,11.3829]
[1645976083694,2.431,2807.0,2804.8,0.18312464]
[1645976083695,1.28416025,2806.2,2805.1,0.3629]
[1645976083893,1.28416025,2806.2,2805.2,7.1296]
[1645976084102,0.1424,2806.1,2805.2,7.1296]
[1645976084899,1.10767571,2805.7,2805.2,7.1296]
[1645976086236,0.1424,2806.1,2805.2,7.1296]
[1645976086636,0.3,2806.1,2805.2,7.1296]
[1645976086837,0.1424,2806.2,2805.2,7.1296]
[1645976087238,1.2017758,2805.8,2805.2,7.1296]
[1645976087439,0.1424,2806.2,2805.2,7.1296]
[1645976087739,0.00544742,2805.8,2805.2,7.1296]
[1645976088543,1.3077929,2805.8,2805.2,7.1296]
[1645976088748,0.1424,2806.2,2805.2,19.5125]
[1645976088997,0.00544761,2805.6,2805.2,19.5125]
[1645976089190,0.00544761,2805.6,2805.2,19.8125]
[1645976089993,0.00544771,2805.5,2805.2,19.8125]
[1645976090395,0.00544771,2805.5,2805.2,8.7925]
[1645976090601,0.00544771,2805.5,2805.2,7.1296]
[1645976090897,0.25,2806.4,2805.2,7.1296]
[1645976090898,0.1424,2806.3,2805.2,7.1296]
[1645976091097,0.3,2805.8,2805.2,7.1296]
[1645976091301,0.00544775,2805.5,2805.2,7.1296]
[1645976091697,1.16936491,2805.4,2805.2,7.1296]
[1645976092498,1.17481271,2805.4,2805.2,7.1296]
[1645976093442,1.16936491,2805.4,2805.2,7.1296]
[1645976093640,1.17481271,2805.4,2805.2,7.1296]
[1645976093842,1.47481271,2805.4,2805.2,7.1296]
[1645976094256,3.5,2805.3,2805.2,7.1296]
[1645976094459,0.731,2805.3,2805.2,7.1296]
[1645976094653,5.231,2805.3,2805.2,7.1296]
[1645976094849,1.731,2805.3,2805.2,7.1296]
[1645976095050,1.8735,2805.3,2805.2,7.1296]
[1645976095349,0.8735,2805.3,2805.2,7.1296]
[1645976095855,1.76552,2805.3,2805.2,7.0796]
[1645976096050,5.26552,2805.3,2805.2,7.0796]
[1645976096249,6.26552,2805.3,2805.2,7.0796]
[1645976096501,2.76552,2805.3,2805.2,7.0796]
[1645976096895,5.8629,2805.2,2803.9,0.01088188]
[1645976097096,1.25502,2805.0,2803.9,0.01088188]
[1645976097295,4.4365,2804.9,2803.9,0.01633259]
[1645976097493,4.7365,2804.9,2803.9,0.01633259]
[1645976097894,2.2365,2804.9,2803.9,0.01633259]
[1645976098399,1.2365,2804.9,2803.9,0.01633259]
[1645976098596,1.2365,2804.9,2803.9,0.01633176]
[1645976098798,1.41703339,2804.2,2803.9,0.01633176]
[1645976098997,1.41703339,2804.2,2804.0,7.1325]
[1645976099197,0.8736,2804.9,2804.0,7.1325]
[1645976099198,2.1736,2804.9,2804.0,7.1325]
[1645976099397,1.0,2804.8,2804.0,7.1325]
[1645976099598,2.5365,2804.9,2804.0,7.1325]
[1645976099798,2.2365,2804.9,2804.0,7.1325]
[1645976100238,1.21830267,2804.3,2804.0,7.1325]
[1645976101442,0.142924,2804.7,2804.0,7.1325]
[1645976103249,1.07499958,2804.8,2804.0,7.1325]
[1645976104292,1.37499958,2804.8,2804.0,7.1325]
[1645976105793,0.3,2804.8,2804.0,7.1325]
[1645976105993,0.3,2804.8,2804.1,1.50826607]
[1645976106195,0.25490667,2805.0,2804.0,7.1325]
[1645976106196,0.30490667,2805.0,2804.2,7.1322]
[1645976106396,0.30490667,2805.0,2804.3,0.3629]
[1645976106397,0.00490667,2805.0,2804.3,0.3629]
[1645976106593,0.1426,2805.2,2804.4,7.1317]
[1645976106793,0.4426,2805.2,2804.4,7.1317]
[1645976106992,1.25335223,2804.9,2804.4,7.1317]
[1645976107395,0.00544775,2805.0,2804.4,7.1317]
[1645976108237,0.00544795,2805.0,2804.4,7.1317]
[1645976108436,1.05171472,2804.9,2804.4,7.1317]
[1645976109040,0.00544795,2805.0,2804.4,7.1317]
[1645976109241,0.0108959,2805.0,2804.4,7.1317]
[1645976109442,0.00544795,2805.0,2804.4,7.1317]
[1645976110240,0.00334795,2805.0,2804.4,7.1317]
[1645976110441,0.00492409,2805.0,2804.4,7.1317]
[1645976111348,1.45987273,2805.1,2804.4,7.1317]
[1645976113493,2.71551,2805.6,2804.6,0.3629]
[1645976113494,0.25,2805.6,2804.6,0.3629]
[1645976113692,0.142876,2806.0,2804.8,11.3829]
[1645976113895,0.142876,2806.0,2805.0,11.3829]
[1645976114088,0.00544786,2805.1,2805.0,11.3829]
[1645976114290,4.786e-05,2805.1,2805.0,11.6301]
[1645976114491,4.786e-05,2805.1,2805.0,13.72584815]
[1645976114695,0.25,2806.5,2805.2,11.02]
[1645976114892,0.25,2806.5,2805.4,11.02]
[1645976115091,0.25,2806.5,2805.5,7.1289]
[1645976115546,1.26688828,2806.0,2805.5,7.1289]
[1645976115947,0.25,2806.5,2805.6,11.02]
[1645976116148,0.25,2806.5,2805.7,7.1283]
[1645976116350,0.89147,2807.0,2805.7,7.1283]
[1645976116858,1.0435877,2805.8,2805.7,7.1283]
[1645976117053,0.5734,2806.3,2805.7,7.1283]
[1645976117454,1.05348108,2806.3,2805.7,7.1283]
[1645976118252,1.31573336,2806.2,2805.7,7.1283]
[1645976118453,0.5734,2806.1,2805.7,7.1283]
[1645976118656,0.8734,2806.1,2805.7,7.1283]
[1645976119097,0.87885064,2806.1,2805.7,7.1283]
[1645976119893,0.8734,2806.1,2805.7,7.1283]
[1645976120094,0.0051073,2806.0,2805.7,7.1283]
[1645976120293,0.0051073,2806.0,2805.1,0.00075214]
[1645976120294,0.89185,2805.8,2805.1,0.00075214]
[1645976120495,0.1424,2805.7,2805.1,0.00075214]
[1645976120896,0.431,2805.6,2805.1,0.00075214]
[1645976121098,0.1424,2805.5,2805.1,0.00075214]
[1645976121297,1.10053172,2805.4,2805.1,0.00075214]
[1645976121495,1.53153172,2805.4,2805.1,0.00075214]
[1645976121699,0.1424,2805.3,2805.1,0.00075214]
[1645976122495,3.72359172,2805.4,2805.1,0.00075214]
[1645976122496,4.32710172,2805.4,2805.1,0.00075214]
[1645976122732,0.731,2805.3,2805.1,0.00075214]
[1645976123134,0.1424,2805.2,2805.1,0.00075214]
[1645976123535,0.731,2805.3,2805.1,0.00075214]
[1645976124842,0.73621138,2805.3,2805.1,0.00075214]
[1645976125845,0.731,2805.3,2805.1,0.00075214]
[1645976126042,0.73621138,2805.3,2805.1,0.00075214]
[1645976126888,0.00521138,2805.3,2805.2,7.1296]
[1645976127103,0.1424,2806.0,2805.2,7.1296]
[1645976127290,0.431,2806.2,2805.2,7.1296]
[1645976127487,0.00521138,2805.3,2805.2,7.1296]
[1645976128090,1.18497839,2805.3,2805.2,7.1296]
[1645976128492,1.17976701,2805.3,2805.2,7.1296]
[1645976129698,1.47976701,2805.3,2805.2,7.1296]
[1645976129893,1.12976701,2805.3,2805.2,7.1296]
[1645976130541,1.12976701,2805.3,2805.2,5.7699]
[1645976130542,1.56076701,2805.3,2805.2,5.7699]
[1645976130739,1.56076701,2805.3,2805.2,1.46767778]
[1645976130740,1.74084809,2805.3,2805.2,1.46767778]
[1645976130941,4.5,2805.2,2805.1,0.00075214]
[1645976131142,5.231,2805.2,2805.1,0.00075214]
[1645976131340,6.231,2805.2,2805.1,0.00075214]
[1645976132140,6.3734,2805.2,2805.1,0.00075214]
[1645976132741,6.516309,2805.2,2805.1,0.00075214]
[1645976133142,2.016309,2805.2,2805.1,0.00075214]
[1645976133343,1.016309,2805.2,2805.1,0.00075214]
[1645976133542,0.873909,2805.2,2805.1,0.00075214]
[1645976134006,0.731,2805.2,2805.1,0.00075214]
[1645976135703,0.431,2805.2,2805.1,0.00075214]
[1645976135905,0.00505158,2805.3,2805.1,0.00075214]
[1645976136304,0.00505158,2805.3,2805.2,7.1296]
[1645976136905,1.1271867,2805.3,2805.2,7.1296]
[1645976137107,1.12725704,2805.3,2805.2,7.1296]
[1645976137306,0.00512192,2805.3,2805.2,7.1296]
[1645976138147,0.1424,2806.1,2805.2,10.6296]
[1645976138148,0.00512188,2805.4,2805.2,10.6296]
[1645976138344,0.00512188,2805.4,2805.2,7.1296]
[1645976139045,0.431,2806.3,2805.2,7.1296]
[1645976139346,0.00504934,2805.4,2805.2,7.1296]
[1645976140346,0.3629,2806.2,2805.2,7.1296]
[1645976140547,0.00504685,2805.4,2805.2,7.1296]
[1645976141590,1.2363,2806.2,2805.2,7.1296]
[1645976141793,0.00263869,2805.4,2805.2,7.1296]
[1645976142990,0.00505508,2805.4,2805.2,7.1296]
[1645976143391,0.731,2806.2,2805.2,7.1296]
[1645976144796,0.1424,2806.1,2805.2,7.1296]
[1645976145538,1.37199963,2805.7,2805.2,7.1296]
[1645976147240,0.25,2805.6,2805.2,7.1296]
[1645976147641,0.25546767,2805.6,2805.2,7.1296]
[1645976148743,0.25,2805.6,2805.2,7.1296]
[1645976149007,0.00546772,2805.5,2805.2,7.1296]
[1645976149803,0.25,2805.6,2805.2,7.1296]
[1645976150202,0.00546767,2805.5,2805.2,7.1296]
[1645976150802,0.14786767,2805.5,2805.2,7.1296]
[1645976151004,8.0,2805.3,2805.1,0.00075214]
[1645976151204,0.1424,2805.2,2805.1,0.00075214]
[1645976151405,1.46548,2805.2,2805.1,0.00075214]
[1645976152207,6.37842384,2805.2,2805.1,0.00075214]
[1645976152746,3.87842384,2805.2,2805.1,0.00075214]
[1645976153144,7.37842384,2805.2,2805.1,0.00075214]
[1645976153343,18.57850492,2805.2,2805.1,0.00075214]
[1645976153545,11.02,2805.0,2804.8,8.925e-05]
[1645976153742,11.02,2805.0,2804.8,7.85e-05]
[1645976153743,22.17823,2804.9,2804.8,7.85e-05]
[1645976153944,22.35831108,2804.9,2804.8,7.85e-05]
[1645976154148,18.35831108,2804.9,2804.8,7.85e-05]
[1645976155049,18.72121108,2804.9,2803.9,0.01088188]
[1645976155248,1.14225,2804.6,2803.9,0.01088188]
[1645976155452,1.83238215,2804.5,2803.9,0.01088188]
[1645976156248,1.68978215,2804.5,2803.9,0.01088188]
[1645976156896,1.83238215,2804.5,2803.9,0.01088188]
[1645976158199,1.68978215,2804.5,2803.9,0.01088188]
[1645976158797,1.68978215,2804.5,2804.1,0.00514505]
[1645976159802,1.68978215,2804.5,2804.2,0.0053921]
[1645976160647,1.68978215,2804.5,2803.9,0.01088188]
[1645976160648,0.431,2804.5,2803.9,0.01088188]
[1645976160850,0.25,2804.6,2803.9,0.01088188]
[1645976161048,0.25,2804.6,2804.2,0.00539205]
[1645976161247,0.25,2804.6,2804.3,7.1319]
[1645976162251,0.25,2804.6,2804.3,7.13729195]
[1645976163049,0.25,2804.6,2804.3,7.1319]
[1645976163248,0.25,2804.6,2804.3,7.4948]
[1645976163453,0.25,2804.6,2804.3,7.49944652]
[1645976165395,0.25,2804.6,2804.3,19.8148]
[1645976165597,0.25,2804.6,2804.5,11.3829]
[1645976165795,0.25,2804.6,2804.5,7.4943]
[1645976166003,0.25,2804.6,2804.5,18.5143]
[1645976166498,0.25,2804.6,2804.5,7.1314]
[1645976170160,0.25,2804.6,2804.5,8.1314]
[1645976171589,0.25,2804.6,2804.5,7.1314]
[1645976172292,0.25,2804.6,2804.5,7.4943]
[1645976172492,0.0008,2805.0,2804.5,22.0143]
[1645976172493,0.25,2804.9,2804.5,22.0143]
[1645976172694,0.25,2804.9,2804.5,23.0143]
[1645976172992,0.25,2804.9,2804.5,7.1314]
[1645976173190,0.25,2804.9,2804.6,0.3629]
[1645976173490,0.25,2804.9,2804.7,7.1309]
[1645976174296,0.25,2804.9,2804.7,7.136065]
[1645976174701,0.00516408,2805.2,2804.9,11.3829]
[1645976174896,0.00516408,2805.2,2805.1,11.3829]
[1645976175097,0.00516408,2805.2,2805.1,18.5128]
[1645976175340,0.00516408,2805.2,2805.1,7.1299]
[1645976175541,0.00259736,2805.2,2805.1,7.1299]
[1645976176248,0.1424,2805.9,2805.1,7.1299]
[1645976176440,1.14323075,2805.5,2805.1,7.1299]
[1645976176639,0.00259736,2805.3,2805.1,7.1299]
[1645976177043,0.00259736,2805.3,2805.2,3.8629]
[1645976177240,0.00259736,2805.3,2805.2,11.9925]
[1645976177445,0.00259736,2805.3,2805.2,23.0125]
[1645976177844,0.2206,2806.0,2805.2,23.0125]